[Event "Titled Tuesday Blitz July 25 Late 2023"]
[White "Gulamali, Kazim"]
[Black "Cardozo Munar, Carlos Eduardo"]
[WhiteFideId "2024764"]
[BlackFideId "4409477"]
[WhiteElo "2468"]
[BlackElo "2239"]
[Result "1-0"]
[Round "2"]
[TimeControl "180+2"]
[Date "2023.07.25"]
[WhiteClock "0:01:31"]
[BlackClock "0:01:09"]
[Board "179"]

1. e4 {[%clk 0:03:00]}  e6 {[%clk 0:02:59]} 2. d4 {[%clk 0:03:00]}  d5 {[%clk 0:03:00]} 3. Nc3 {[%clk 0:03:00]}  Nf6 {[%clk 0:03:00]} 4. e5 {[%clk 0:03:01]}  Nfd7 {[%clk 0:03:00]} 5. f4 {[%clk 0:03:01]}  c5 {[%clk 0:03:01]} 6. Nf3 {[%clk 0:03:02]}  Nc6 {[%clk 0:03:01]} 7. Ne2 {[%clk 0:03:03]}  Qb6 {[%clk 0:03:02]} 8. c3 {[%clk 0:03:03]}  cxd4 {[%clk 0:03:02]} 9. cxd4 {[%clk 0:03:02]}  f6 {[%clk 0:03:03]} 10. Nc3 {[%clk 0:03:02]}  Bb4 {[%clk 0:03:02]} 11. a3 {[%clk 0:02:57]}  Bxc3+ {[%clk 0:03:02]} 12. bxc3 {[%clk 0:02:58]}  fxe5 {[%clk 0:03:02]} 13. fxe5 {[%clk 0:02:59]}  O-O {[%clk 0:03:03]} 14. Bd3 {[%clk 0:02:53]}  g6 {[%clk 0:03:03]} 15. Qe2 {[%clk 0:02:47]}  a6 {[%clk 0:03:00]} 16. Bh6 {[%clk 0:02:42]}  Qb3 {[%clk 0:02:45]} 17. Rc1 {[%clk 0:02:38]}  Qxa3 {[%clk 0:02:43]} 18. O-O {[%clk 0:02:36]}  b5 {[%clk 0:02:33]} 19. Bxf8 {[%clk 0:02:20]}  Nxf8 {[%clk 0:02:32]} 20. Qe3 {[%clk 0:02:14]}  Bd7 {[%clk 0:02:25]} 21. Qh6 {[%clk 0:02:06]}  Ne7 {[%clk 0:02:24]} 22. g4 {[%clk 0:02:03]}  Rc8 {[%clk 0:02:08]} 23. Ng5 {[%clk 0:02:01]}  Nf5 {[%clk 0:01:50]} 24. gxf5 {[%clk 0:01:49]}  exf5 {[%clk 0:01:50]} 25. e6 {[%clk 0:01:38]}  Bxe6 {[%clk 0:01:49]} 26. Nxe6 {[%clk 0:01:38]}  Nxe6 {[%clk 0:01:50]} 27. Bxf5 {[%clk 0:01:38]}  Re8 {[%clk 0:01:18]} 28. Rce1 {[%clk 0:01:35]}  Qd6 {[%clk 0:01:11]} 29. Bxe6+ {[%clk 0:01:33]}  Rxe6 {[%clk 0:01:09]} 30. Rxe6 {[%clk 0:01:34]}  Qxe6 {[%clk 0:01:09]} 31. Rf8# {[%clk 0:01:31]} 1-0


[Site "https://www.chess.com"]

[Event "Titled Tuesday Blitz July 25 Late 2023"]
[White "ExchangeAB"]
[Black "Sarkar, Justin"]
[BlackFideId "2010011"]
[WhiteElo "2465"]
[BlackElo "2228"]
[Result "0-1"]
[Round "2"]
[TimeControl "180+2"]
[Date "2023.07.25"]
[WhiteClock "0:00:11"]
[BlackClock "0:00:05"]
[Board "180"]

1. d4 {[%clk 0:03:00]}  Nf6 {[%clk 0:02:54]} 2. Nc3 {[%clk 0:03:00]}  d5 {[%clk 0:02:50]} 3. Bf4 {[%clk 0:02:59]}  g6 {[%clk 0:02:31]} 4. e3 {[%clk 0:02:57]}  Bg7 {[%clk 0:02:30]} 5. h4 {[%clk 0:02:55]}  O-O {[%clk 0:02:26]} 6. h5 {[%clk 0:02:55]}  c5 {[%clk 0:02:14]} 7. dxc5 {[%clk 0:02:46]}  Ne4 {[%clk 0:01:53]} 8. Nxe4 {[%clk 0:02:31]}  dxe4 {[%clk 0:01:52]} 9. Qxd8 {[%clk 0:02:19]}  Rxd8 {[%clk 0:01:52]} 10. c3 {[%clk 0:02:19]}  Na6 {[%clk 0:01:40]} 11. Bxa6 {[%clk 0:02:15]}  bxa6 {[%clk 0:01:39]} 12. hxg6 {[%clk 0:02:13]}  hxg6 {[%clk 0:01:38]} 13. Ne2 {[%clk 0:02:12]}  e5 {[%clk 0:01:26]} 14. Bg5 {[%clk 0:02:09]}  f6 {[%clk 0:01:18]} 15. Bh6 {[%clk 0:02:04]}  a5 {[%clk 0:01:17]} 16. Bxg7 {[%clk 0:02:03]}  Kxg7 {[%clk 0:01:17]} 17. b4 {[%clk 0:01:39]}  Ba6 {[%clk 0:01:06]} 18. Rd1 {[%clk 0:01:32]}  Rxd1+ {[%clk 0:00:52]} 19. Kxd1 {[%clk 0:01:33]}  Bc4 {[%clk 0:00:52]} 20. a3 {[%clk 0:01:30]}  axb4 {[%clk 0:00:42]} 21. cxb4 {[%clk 0:01:28]}  a5 {[%clk 0:00:42]} 22. Nc1 {[%clk 0:01:10]}  axb4 {[%clk 0:00:38]} 23. axb4 {[%clk 0:01:11]}  Rb8 {[%clk 0:00:35]} 24. c6 {[%clk 0:01:07]}  Rxb4 {[%clk 0:00:33]} 25. c7 {[%clk 0:01:06]}  Be6 {[%clk 0:00:28]} 26. Re1 {[%clk 0:01:04]}  Rc4 {[%clk 0:00:25]} 27. Re2 {[%clk 0:01:03]}  Rxc7 {[%clk 0:00:25]} 28. Rc2 {[%clk 0:01:00]}  Bg4+ {[%clk 0:00:22]} 29. Kd2 {[%clk 0:00:55]}  Rd7+ {[%clk 0:00:22]} 30. Kc3 {[%clk 0:00:55]}  Rd1 {[%clk 0:00:21]} 31. g3 {[%clk 0:00:51]}  f5 {[%clk 0:00:17]} 32. Nb3 {[%clk 0:00:51]}  Rd3+ {[%clk 0:00:15]} 33. Kb4 {[%clk 0:00:50]}  Rxb3+ {[%clk 0:00:12]} 34. Kxb3 {[%clk 0:00:49]}  Bd1 {[%clk 0:00:12]} 35. Kc3 {[%clk 0:00:49]}  Bxc2 {[%clk 0:00:13]} 36. Kxc2 {[%clk 0:00:50]}  Kh6 {[%clk 0:00:12]} 37. Kd2 {[%clk 0:00:30]}  Kg5 {[%clk 0:00:12]} 38. Ke2 {[%clk 0:00:27]}  Kg4 {[%clk 0:00:12]} 39. Kf1 {[%clk 0:00:24]}  Kf3 {[%clk 0:00:12]} 40. Kg1 {[%clk 0:00:24]}  g5 {[%clk 0:00:10]} 41. Kf1 {[%clk 0:00:24]}  f4 {[%clk 0:00:09]} 42. gxf4 {[%clk 0:00:23]}  exf4 {[%clk 0:00:08]} 43. exf4 {[%clk 0:00:23]}  gxf4 {[%clk 0:00:08]} 44. Ke1 {[%clk 0:00:21]}  Kg2 {[%clk 0:00:07]} 45. Ke2 {[%clk 0:00:19]}  e3 {[%clk 0:00:05]} 46. fxe3 {[%clk 0:00:11]}  f3+ {[%clk 0:00:05]} 0-1


[Site "https://www.chess.com"]

[Event "Titled Tuesday Blitz July 25 Late 2023"]
[White "MateoReyes"]
[Black "De Souza, Cristiano Gomes"]
[BlackFideId "2151758"]
[WhiteElo "2465"]
[BlackElo "2220"]
[Result "0-1"]
[Round "2"]
[TimeControl "180+2"]
[Date "2023.07.25"]
[WhiteClock "0:00:37"]
[BlackClock "0:00:37"]
[Board "181"]

1. Nf3 {[%clk 0:02:59]}  Nf6 {[%clk 0:02:59]} 2. d4 {[%clk 0:02:58]}  g6 {[%clk 0:02:59]} 3. Bg5 {[%clk 0:02:57]}  Bg7 {[%clk 0:02:59]} 4. Nbd2 {[%clk 0:02:58]}  h6 {[%clk 0:02:58]} 5. Bh4 {[%clk 0:02:57]}  d6 {[%clk 0:02:58]} 6. e3 {[%clk 0:02:57]}  g5 {[%clk 0:02:58]} 7. Bg3 {[%clk 0:02:56]}  Nh5 {[%clk 0:02:57]} 8. Bc4 {[%clk 0:02:52]}  e6 {[%clk 0:02:53]} 9. c3 {[%clk 0:02:48]}  Nd7 {[%clk 0:02:51]} 10. Qc2 {[%clk 0:02:44]}  Qe7 {[%clk 0:02:50]} 11. O-O-O {[%clk 0:02:35]}  a6 {[%clk 0:02:49]} 12. h4 {[%clk 0:02:33]}  Nxg3 {[%clk 0:02:48]} 13. fxg3 {[%clk 0:02:33]}  b5 {[%clk 0:02:48]} 14. Bd3 {[%clk 0:02:31]}  Bb7 {[%clk 0:02:48]} 15. hxg5 {[%clk 0:02:29]}  hxg5 {[%clk 0:02:48]} 16. Rxh8+ {[%clk 0:02:28]}  Bxh8 {[%clk 0:02:48]} 17. Rh1 {[%clk 0:02:27]}  O-O-O {[%clk 0:02:47]} 18. a4 {[%clk 0:02:25]}  c6 {[%clk 0:02:44]} 19. Qb3 {[%clk 0:02:22]}  Nb6 {[%clk 0:02:41]} 20. axb5 {[%clk 0:02:21]}  axb5 {[%clk 0:02:40]} 21. Kb1 {[%clk 0:02:20]}  Kc7 {[%clk 0:02:40]} 22. c4 {[%clk 0:02:19]}  bxc4 {[%clk 0:02:38]} 23. Nxc4 {[%clk 0:02:17]}  Nxc4 {[%clk 0:02:37]} 24. Bxc4 {[%clk 0:02:17]}  Rb8 {[%clk 0:02:38]} 25. Qc2 {[%clk 0:02:12]}  g4 {[%clk 0:02:33]} 26. Nd2 {[%clk 0:02:11]}  c5 {[%clk 0:02:31]} 27. Nb3 {[%clk 0:02:05]}  f5 {[%clk 0:02:28]} 28. Qc3 {[%clk 0:01:59]}  Be4+ {[%clk 0:02:27]} 29. Kc1 {[%clk 0:01:58]}  Bf6 {[%clk 0:02:20]} 30. Qa5+ {[%clk 0:01:56]}  Rb6 {[%clk 0:02:10]} 31. Qa7+ {[%clk 0:01:36]}  Rb7 {[%clk 0:02:09]} 32. Qa5+ {[%clk 0:01:36]}  Rb6 {[%clk 0:02:09]} 33. dxc5 {[%clk 0:01:35]}  dxc5 {[%clk 0:02:08]} 34. Nxc5 {[%clk 0:01:32]}  Bxb2+ {[%clk 0:01:59]} 35. Kd2 {[%clk 0:01:31]}  Qd6+ {[%clk 0:01:56]} 36. Ke2 {[%clk 0:01:30]}  Qxg3 {[%clk 0:01:44]} 37. Rh7+ {[%clk 0:01:25]}  Kc6 {[%clk 0:01:35]} 38. Qa4+ {[%clk 0:01:05]}  Kxc5 {[%clk 0:01:30]} 39. Qa5+ {[%clk 0:00:59]}  Kc6 {[%clk 0:01:30]} 40. Qa4+ {[%clk 0:00:56]}  Kd6 {[%clk 0:01:07]} 41. Rd7+ {[%clk 0:00:44]}  Ke5 {[%clk 0:00:47]} 42. Qa5+ {[%clk 0:00:44]}  Kf6 {[%clk 0:00:43]} 43. Qxb6 {[%clk 0:00:42]}  Qxg2+ {[%clk 0:00:42]} 44. Ke1 {[%clk 0:00:37]}  Bc3+ {[%clk 0:00:42]} 45. Kd1 {[%clk 0:00:37]}  Qc2# {[%clk 0:00:37]} 0-1


[Site "https://www.chess.com"]

[Event "Titled Tuesday Blitz July 25 Late 2023"]
[White "Chlpik, Martin"]
[Black "szachmistrz2500"]
[WhiteFideId "14923351"]
[WhiteElo "2209"]
[BlackElo "2463"]
[Result "1-0"]
[Round "2"]
[TimeControl "180+2"]
[Date "2023.07.25"]
[WhiteClock "0:00:23"]
[BlackClock "0:00:16"]
[Board "182"]

1. d4 {[%clk 0:03:00]}  c5 {[%clk 0:02:59]} 2. d5 {[%clk 0:03:00]}  e6 {[%clk 0:02:57]} 3. c4 {[%clk 0:02:59]}  Nf6 {[%clk 0:02:56]} 4. Nc3 {[%clk 0:02:59]}  exd5 {[%clk 0:02:57]} 5. cxd5 {[%clk 0:02:59]}  d6 {[%clk 0:02:57]} 6. e4 {[%clk 0:03:00]}  Be7 {[%clk 0:02:56]} 7. Bd3 {[%clk 0:02:47]}  O-O {[%clk 0:02:55]} 8. h3 {[%clk 0:02:45]}  Na6 {[%clk 0:02:55]} 9. Nf3 {[%clk 0:02:44]}  Nc7 {[%clk 0:02:55]} 10. O-O {[%clk 0:02:44]}  Bd7 {[%clk 0:02:52]} 11. a4 {[%clk 0:02:44]}  b6 {[%clk 0:02:49]} 12. Bf4 {[%clk 0:02:44]}  a6 {[%clk 0:02:47]} 13. e5 {[%clk 0:02:33]}  Nfe8 {[%clk 0:02:46]} 14. Re1 {[%clk 0:02:31]}  Rb8 {[%clk 0:02:44]} 15. Bh2 {[%clk 0:02:21]}  b5 {[%clk 0:02:43]} 16. axb5 {[%clk 0:02:20]}  axb5 {[%clk 0:02:43]} 17. Ne4 {[%clk 0:02:20]}  Nxd5 {[%clk 0:02:38]} 18. exd6 {[%clk 0:02:18]}  Bf6 {[%clk 0:02:37]} 19. Nxc5 {[%clk 0:02:17]}  Bxb2 {[%clk 0:02:31]} 20. Ra7 {[%clk 0:02:16]}  Bc6 {[%clk 0:02:25]} 21. Bxh7+ {[%clk 0:02:14]}  Kxh7 {[%clk 0:02:21]} 22. Qc2+ {[%clk 0:02:14]}  Kg8 {[%clk 0:02:13]} 23. d7 {[%clk 0:02:01]}  Nef6 {[%clk 0:02:03]} 24. Qxb2 {[%clk 0:01:57]}  Ra8 {[%clk 0:01:57]} 25. Ne5 {[%clk 0:01:21]}  Rxa7 {[%clk 0:01:52]} 26. Nxc6 {[%clk 0:01:21]}  Qb6 {[%clk 0:01:52]} 27. Nxa7 {[%clk 0:01:09]}  Qxc5 {[%clk 0:01:47]} 28. Nxb5 {[%clk 0:01:08]}  Nxd7 {[%clk 0:01:43]} 29. Bd6 {[%clk 0:01:08]}  Qb6 {[%clk 0:01:35]} 30. Bxf8 {[%clk 0:01:08]}  Nxf8 {[%clk 0:01:36]} 31. Re8 {[%clk 0:00:59]}  Nf6 {[%clk 0:01:33]} 32. Ra8 {[%clk 0:00:54]}  Qb7 {[%clk 0:01:32]} 33. Qa3 {[%clk 0:00:54]}  Nd7 {[%clk 0:01:31]} 34. Nd6 {[%clk 0:00:52]}  Qd5 {[%clk 0:01:17]} 35. Nc8 {[%clk 0:00:46]}  Qe5 {[%clk 0:01:05]} 36. Ra5 {[%clk 0:00:43]}  Qe1+ {[%clk 0:01:03]} 37. Kh2 {[%clk 0:00:43]}  g6 {[%clk 0:00:59]} 38. Ne7+ {[%clk 0:00:42]}  Kg7 {[%clk 0:00:58]} 39. Qb2+ {[%clk 0:00:38]}  Nf6 {[%clk 0:00:57]} 40. Nd5 {[%clk 0:00:35]}  Nd7 {[%clk 0:00:16]} 41. Ra6 {[%clk 0:00:23]} 1-0


[Site "https://www.chess.com"]

[Event "Titled Tuesday Blitz July 25 Late 2023"]
[White "Grossboss19"]
[Black "HeinichessPY"]
[WhiteElo "2461"]
[BlackElo "2202"]
[Result "1-0"]
[Round "2"]
[TimeControl "180+2"]
[Date "2023.07.25"]
[WhiteClock "0:02:29"]
[BlackClock "0:02:26"]
[Board "183"]

1. Nf3 {[%clk 0:03:00]}  Nf6 {[%clk 0:02:48]} 2. b3 {[%clk 0:02:57]}  g6 {[%clk 0:02:48]} 3. Bb2 {[%clk 0:02:58]}  Bg7 {[%clk 0:02:49]} 4. g3 {[%clk 0:02:58]}  d6 {[%clk 0:02:48]} 5. Bg2 {[%clk 0:02:58]}  O-O {[%clk 0:02:48]} 6. O-O {[%clk 0:02:58]}  c6 {[%clk 0:02:49]} 7. c4 {[%clk 0:02:58]}  Qa5 {[%clk 0:02:49]} 8. d3 {[%clk 0:02:54]}  Qh5 {[%clk 0:02:49]} 9. e4 {[%clk 0:02:53]}  Bh3 {[%clk 0:02:49]} 10. Nfd2 {[%clk 0:02:51]}  Ng4 {[%clk 0:02:48]} 11. Bxg7 {[%clk 0:02:47]}  Bxg2 {[%clk 0:02:48]} 12. h4 {[%clk 0:02:46]}  Bxf1 {[%clk 0:02:34]} 13. Bxf8 {[%clk 0:02:45]}  Bxd3 {[%clk 0:02:34]} 14. Bxe7 {[%clk 0:02:29]}  Qe5 {[%clk 0:02:34]} 15. Qxg4 {[%clk 0:02:29]}  Qxa1 {[%clk 0:02:27]} 16. Qc8+ {[%clk 0:02:29]}  Kg7 {[%clk 0:02:26]} 17. Qf8# {[%clk 0:02:29]} 1-0


[Site "https://www.chess.com"]

[Event "Titled Tuesday Blitz July 25 Late 2023"]
[White "Francisco_Ferrari"]
[Black "Karas, Marek"]
[BlackFideId "14928558"]
[WhiteElo "2198"]
[BlackElo "2458"]
[Result "1-0"]
[Round "2"]
[TimeControl "180+2"]
[Date "2023.07.25"]
[WhiteClock "0:00:21"]
[BlackClock "0:00:00"]
[Board "184"]

1. e4 {[%clk 0:02:55]}  c5 {[%clk 0:02:59]} 2. Nf3 {[%clk 0:02:52]}  Nc6 {[%clk 0:02:58]} 3. Bb5 {[%clk 0:02:49]}  e6 {[%clk 0:02:54]} 4. Bxc6 {[%clk 0:02:47]}  bxc6 {[%clk 0:02:53]} 5. O-O {[%clk 0:02:40]}  Ne7 {[%clk 0:02:52]} 6. b3 {[%clk 0:02:39]}  Ng6 {[%clk 0:02:52]} 7. Bb2 {[%clk 0:02:39]}  f6 {[%clk 0:02:50]} 8. c4 {[%clk 0:02:34]}  e5 {[%clk 0:02:41]} 9. Nc3 {[%clk 0:02:29]}  d6 {[%clk 0:02:40]} 10. a3 {[%clk 0:02:23]}  Be7 {[%clk 0:02:39]} 11. b4 {[%clk 0:02:23]}  cxb4 {[%clk 0:02:39]} 12. axb4 {[%clk 0:02:24]}  O-O {[%clk 0:02:39]} 13. d4 {[%clk 0:02:23]}  Bg4 {[%clk 0:02:34]} 14. d5 {[%clk 0:02:16]}  Nh4 {[%clk 0:02:30]} 15. dxc6 {[%clk 0:02:13]}  Bxf3 {[%clk 0:02:30]} 16. gxf3 {[%clk 0:02:12]}  Qe8 {[%clk 0:02:30]} 17. Kh1 {[%clk 0:02:08]}  Qh5 {[%clk 0:02:29]} 18. Rg1 {[%clk 0:01:49]}  Nxf3 {[%clk 0:02:19]} 19. Rg2 {[%clk 0:01:48]}  f5 {[%clk 0:02:15]} 20. Nd5 {[%clk 0:01:48]}  Bh4 {[%clk 0:02:11]} 21. Qe2 {[%clk 0:01:26]}  Kh8 {[%clk 0:01:58]} 22. c5 {[%clk 0:01:21]}  dxc5 {[%clk 0:01:56]} 23. Bxe5 {[%clk 0:01:20]}  Rg8 {[%clk 0:01:47]} 24. Rag1 {[%clk 0:00:57]}  fxe4 {[%clk 0:01:34]} 25. Bxg7+ {[%clk 0:00:57]}  Rxg7 {[%clk 0:01:33]} 26. Rxg7 {[%clk 0:00:58]}  Bg5 {[%clk 0:01:24]} 27. Rg2 {[%clk 0:00:44]}  Kxg7 {[%clk 0:01:23]} 28. Qxe4 {[%clk 0:00:44]}  Rf8 {[%clk 0:01:16]} 29. c7 {[%clk 0:00:42]}  Kh8 {[%clk 0:01:11]} 30. Ne7 {[%clk 0:00:33]}  Qe8 {[%clk 0:01:08]} 31. c8=Q {[%clk 0:00:28]}  Qxe7 {[%clk 0:01:04]} 32. Qxe7 {[%clk 0:00:25]}  Bxe7 {[%clk 0:01:05]} 33. Qe6 {[%clk 0:00:23]}  Bf6 {[%clk 0:00:55]} 34. bxc5 {[%clk 0:00:20]}  a5 {[%clk 0:00:51]} 35. Rg8+ {[%clk 0:00:19]}  Rxg8 {[%clk 0:00:50]} 36. Qxf6+ {[%clk 0:00:20]}  Rg7 {[%clk 0:00:51]} 37. Qxf3 {[%clk 0:00:21]}  Rg8 {[%clk 0:00:45]} 38. Qf6+ {[%clk 0:00:20]}  Rg7 {[%clk 0:00:00]} 39. c6 {[%clk 0:00:21]} 1-0


[Site "https://www.chess.com"]

[Event "Titled Tuesday Blitz July 25 Late 2023"]
[White "Perske, Thore"]
[Black "Quirke, Jeffrey"]
[WhiteFideId "12902195"]
[BlackFideId "2013029"]
[WhiteElo "2457"]
[BlackElo "2196"]
[Result "1-0"]
[Round "2"]
[TimeControl "180+2"]
[Date "2023.07.25"]
[WhiteClock "0:00:45"]
[BlackClock "0:00:19"]
[Board "185"]

1. d4 {[%clk 0:03:00]}  e6 {[%clk 0:02:59]} 2. g3 {[%clk 0:03:01]}  f5 {[%clk 0:02:58]} 3. Bg2 {[%clk 0:03:01]}  Nf6 {[%clk 0:02:59]} 4. Nf3 {[%clk 0:03:00]}  d5 {[%clk 0:02:58]} 5. c4 {[%clk 0:03:00]}  Be7 {[%clk 0:02:58]} 6. Nc3 {[%clk 0:03:00]}  c6 {[%clk 0:02:56]} 7. O-O {[%clk 0:03:01]}  O-O {[%clk 0:02:56]} 8. Bf4 {[%clk 0:03:01]}  Nbd7 {[%clk 0:02:54]} 9. Qc2 {[%clk 0:03:01]}  b6 {[%clk 0:02:49]} 10. cxd5 {[%clk 0:02:49]}  cxd5 {[%clk 0:02:49]} 11. Nb5 {[%clk 0:02:47]}  Ba6 {[%clk 0:02:44]} 12. Nc7 {[%clk 0:02:39]}  Rc8 {[%clk 0:02:40]} 13. Qa4 {[%clk 0:02:21]}  Bxe2 {[%clk 0:02:30]} 14. Nxe6 {[%clk 0:02:20]}  Qe8 {[%clk 0:02:26]} 15. Nxf8 {[%clk 0:02:12]}  Bxf1 {[%clk 0:02:25]} 16. Nxd7 {[%clk 0:02:12]}  Bxg2 {[%clk 0:02:07]} 17. Nxf6+ {[%clk 0:02:12]}  Bxf6 {[%clk 0:02:08]} 18. Qxe8+ {[%clk 0:02:11]}  Rxe8 {[%clk 0:02:09]} 19. Kxg2 {[%clk 0:02:11]}  Re2 {[%clk 0:02:04]} 20. Rb1 {[%clk 0:01:59]}  h6 {[%clk 0:02:02]} 21. Be5 {[%clk 0:01:59]}  Be7 {[%clk 0:02:01]} 22. Kf1 {[%clk 0:01:55]}  Rc2 {[%clk 0:02:00]} 23. Ne1 {[%clk 0:01:52]}  Rc4 {[%clk 0:01:55]} 24. Ke2 {[%clk 0:01:50]}  g5 {[%clk 0:01:52]} 25. Kd3 {[%clk 0:01:46]}  Kf7 {[%clk 0:01:52]} 26. b3 {[%clk 0:01:44]}  Rc8 {[%clk 0:01:51]} 27. Nc2 {[%clk 0:01:39]}  Ke6 {[%clk 0:01:48]} 28. f4 {[%clk 0:01:38]}  g4 {[%clk 0:01:48]} 29. Ne3 {[%clk 0:01:37]}  h5 {[%clk 0:01:46]} 30. Kd2 {[%clk 0:01:28]}  h4 {[%clk 0:01:46]} 31. Rc1 {[%clk 0:01:27]}  Rxc1 {[%clk 0:01:46]} 32. Kxc1 {[%clk 0:01:27]}  h3 {[%clk 0:01:46]} 33. Kc2 {[%clk 0:01:22]}  Bb4 {[%clk 0:01:40]} 34. Kd3 {[%clk 0:01:14]}  Be1 {[%clk 0:01:36]} 35. Nf1 {[%clk 0:01:12]}  Bf2 {[%clk 0:01:04]} 36. Bb8 {[%clk 0:01:00]}  a6 {[%clk 0:01:04]} 37. Ba7 {[%clk 0:01:00]}  b5 {[%clk 0:01:04]} 38. Bc5 {[%clk 0:01:00]}  Bg1 {[%clk 0:01:00]} 39. Bb4 {[%clk 0:00:57]}  Bf2 {[%clk 0:00:40]} 40. Bd2 {[%clk 0:00:56]}  Bg1 {[%clk 0:00:32]} 41. Be3 {[%clk 0:00:55]}  Bxh2 {[%clk 0:00:32]} 42. Nxh2 {[%clk 0:00:55]}  Kd6 {[%clk 0:00:31]} 43. Bd2 {[%clk 0:00:53]}  Kc6 {[%clk 0:00:30]} 44. Bb4 {[%clk 0:00:53]}  Kd7 {[%clk 0:00:29]} 45. Ba5 {[%clk 0:00:53]}  Kc6 {[%clk 0:00:29]} 46. Kc3 {[%clk 0:00:53]}  Kb7 {[%clk 0:00:28]} 47. Kb4 {[%clk 0:00:54]}  Kc6 {[%clk 0:00:29]} 48. Bd8 {[%clk 0:00:53]}  Kd7 {[%clk 0:00:27]} 49. Bb6 {[%clk 0:00:49]}  Kc6 {[%clk 0:00:28]} 50. Ba5 {[%clk 0:00:49]}  Kd6 {[%clk 0:00:26]} 51. a3 {[%clk 0:00:48]}  Kc6 {[%clk 0:00:26]} 52. Bd8 {[%clk 0:00:46]}  Kd7 {[%clk 0:00:25]} 53. Ka5 {[%clk 0:00:45]}  Kxd8 {[%clk 0:00:19]} 54. Kxa6 {[%clk 0:00:45]} 1-0


[Site "https://www.chess.com"]

[Event "Titled Tuesday Blitz July 25 Late 2023"]
[White "Winslow, Elliott"]
[Black "Castella Garcia, Fausto"]
[WhiteFideId "2002523"]
[BlackFideId "3501922"]
[WhiteElo "2174"]
[BlackElo "2451"]
[Result "0-1"]
[Round "2"]
[TimeControl "180+2"]
[Date "2023.07.25"]
[WhiteClock "0:00:00"]
[BlackClock "0:01:32"]
[Board "186"]

1. e4 {[%clk 0:01:08]}  c5 {[%clk 0:02:56]} 2. Nf3 {[%clk 0:01:06]}  d6 {[%clk 0:02:56]} 3. d4 {[%clk 0:01:06]}  cxd4 {[%clk 0:02:56]} 4. Nxd4 {[%clk 0:01:07]}  Nf6 {[%clk 0:02:54]} 5. Nc3 {[%clk 0:01:07]}  g6 {[%clk 0:02:49]} 6. Be3 {[%clk 0:01:04]}  Bg7 {[%clk 0:02:49]} 7. f3 {[%clk 0:01:04]}  O-O {[%clk 0:02:49]} 8. Qd2 {[%clk 0:01:04]}  Nc6 {[%clk 0:02:50]} 9. Bc4 {[%clk 0:01:04]}  Nd7 {[%clk 0:02:48]} 10. Bb3 {[%clk 0:01:01]}  Nb6 {[%clk 0:02:49]} 11. h4 {[%clk 0:01:01]}  Na5 {[%clk 0:02:48]} 12. Qe2 {[%clk 0:01:00]}  Nxb3 {[%clk 0:02:47]} 13. axb3 {[%clk 0:00:55]}  d5 {[%clk 0:02:46]} 14. O-O-O {[%clk 0:00:50]}  e5 {[%clk 0:02:46]} 15. Ndb5 {[%clk 0:00:43]}  d4 {[%clk 0:02:46]} 16. Bf2 {[%clk 0:00:40]}  Bd7 {[%clk 0:02:35]} 17. Nd5 {[%clk 0:00:31]}  Nxd5 {[%clk 0:02:35]} 18. exd5 {[%clk 0:00:30]}  Qa5 {[%clk 0:02:23]} 19. Na3 {[%clk 0:00:20]}  Rac8 {[%clk 0:02:13]} 20. h5 {[%clk 0:00:17]}  Bf5 {[%clk 0:02:08]} 21. g4 {[%clk 0:00:15]}  Bxc2 {[%clk 0:01:58]} 22. Nxc2 {[%clk 0:00:14]}  Qa1+ {[%clk 0:01:55]} 23. Kd2 {[%clk 0:00:14]}  Qxb2 {[%clk 0:01:53]} 24. Qd3 {[%clk 0:00:14]}  Bh6+ {[%clk 0:01:51]} 25. Ke1 {[%clk 0:00:09]}  Rxc2 {[%clk 0:01:41]} 26. hxg6 {[%clk 0:00:09]}  fxg6 {[%clk 0:01:41]} 27. Rxh6 {[%clk 0:00:05]}  Rxf2 {[%clk 0:01:39]} 28. Rxg6+ {[%clk 0:00:03]}  Kh8 {[%clk 0:01:40]} 29. Rh6 {[%clk 0:00:00]}  Rf7 {[%clk 0:01:32]} 0-1


[Site "https://www.chess.com"]

[Event "Titled Tuesday Blitz July 25 Late 2023"]
[White "Osmonbekov, Talaibek"]
[Black "Kupervaser, Erez"]
[WhiteFideId "2017253"]
[BlackFideId "2814587"]
[WhiteElo "2150"]
[BlackElo "2449"]
[Result "1-0"]
[Round "2"]
[TimeControl "180+2"]
[Date "2023.07.25"]
[WhiteClock "0:00:16"]
[BlackClock "0:00:08"]
[Board "188"]

1. d4 {[%clk 0:03:00]}  d5 {[%clk 0:03:00]} 2. Bf4 {[%clk 0:03:01]}  Nf6 {[%clk 0:02:59]} 3. Nc3 {[%clk 0:03:01]}  e6 {[%clk 0:02:55]} 4. e3 {[%clk 0:03:01]}  Bb4 {[%clk 0:02:54]} 5. Bd3 {[%clk 0:03:00]}  c5 {[%clk 0:02:53]} 6. dxc5 {[%clk 0:02:59]}  Bxc3+ {[%clk 0:02:50]} 7. bxc3 {[%clk 0:02:59]}  Qa5 {[%clk 0:02:51]} 8. Ne2 {[%clk 0:02:51]}  Qxc5 {[%clk 0:02:51]} 9. O-O {[%clk 0:02:49]}  Nc6 {[%clk 0:02:51]} 10. Bg5 {[%clk 0:02:37]}  Nd7 {[%clk 0:02:38]} 11. Rb1 {[%clk 0:02:21]}  e5 {[%clk 0:02:36]} 12. Bf5 {[%clk 0:02:14]}  Nb6 {[%clk 0:02:24]} 13. Ng3 {[%clk 0:02:07]}  Qxc3 {[%clk 0:02:13]} 14. Qg4 {[%clk 0:01:56]}  h5 {[%clk 0:01:17]} 15. Qh3 {[%clk 0:01:19]}  Bxf5 {[%clk 0:00:52]} 16. Nxf5 {[%clk 0:01:15]}  Kf8 {[%clk 0:00:52]} 17. Nd6 {[%clk 0:01:03]}  Qxc2 {[%clk 0:00:35]} 18. e4 {[%clk 0:00:54]}  Nd4 {[%clk 0:00:31]} 19. Rxb6 {[%clk 0:00:45]}  Qc7 {[%clk 0:00:20]} 20. Rxb7 {[%clk 0:00:39]}  Qxd6 {[%clk 0:00:20]} 21. Be7+ {[%clk 0:00:37]}  Qxe7 {[%clk 0:00:21]} 22. Rxe7 {[%clk 0:00:37]}  Kxe7 {[%clk 0:00:22]} 23. exd5 {[%clk 0:00:35]}  Rhc8 {[%clk 0:00:19]} 24. Qxh5 {[%clk 0:00:31]}  f6 {[%clk 0:00:19]} 25. f4 {[%clk 0:00:21]}  exf4 {[%clk 0:00:17]} 26. d6+ {[%clk 0:00:17]}  Kf8 {[%clk 0:00:13]} 27. d7 {[%clk 0:00:17]}  Rd8 {[%clk 0:00:12]} 28. Qc5+ {[%clk 0:00:17]}  Kg8 {[%clk 0:00:10]} 29. Qxd4 {[%clk 0:00:18]}  Rab8 {[%clk 0:00:11]} 30. Rxf4 {[%clk 0:00:17]}  Rb7 {[%clk 0:00:08]} 31. Qd5+ {[%clk 0:00:16]} 1-0


[Site "https://www.chess.com"]